Cogmind - Beta 13 @@@ ROGUE MODE // 2024.08.03 @ 22:14:35 Player: Clortox Result: Destroyed by G-47 Trooper with Particle Gun Performance ------------- Evolutions (1) 500 Regions Visited (2) 400 Robots Destroyed (30) 150 Value Destroyed (544) 544 Prototype IDs (0) 0 Alien Tech Used (0) 0 Bonus (0) 0 TOTAL SCORE: 1594 Bonus ------- None Cogmind --------- Core Integrity 0/400 Matter 335/500 Energy 99/100 System Corruption 0% Temperature Cool (9) Movement Core (150) Ox2 Location -9/Materials Parts ------- > --- POWER (1) -------- (None) > --- PROPULSION (3) --- (None) > --- UTILITY (3) ------ High-capacity Matter Pod Signal Interpreter > --- WEAPON (2) ------- Heavy Assault Rifle > --- INVENTORY (5) ---- Light Ion Engine Peak State ------------ > --- POWER ------------ Ion Engine > --- PROPULSION ------- Wheel Wheel > --- UTILITY ---------- High-capacity Matter Pod Improved Terrain Scanner > --- WEAPON ----------- Small Laser Grenade Launcher > --- INVENTORY -------- Ion Engine Wheel Seismic Detector EM Pulse Gun [Rating: 9] Favorites ----------- Power Ion Engine Engine Ion Engine Propulsion Wheel Treads Light Treads Wheel Wheel Utility High-capacity Matter Pod Device Seismic Detector Storage High-capacity Matter Pod Processor Signal Interpreter Weapon Grenade Launcher Energy Gun EM Pulse Gun Ballistic Gun Assault Rifle Ballistic Cannon Light Cannon Launcher Grenade Launcher Special Melee Weapon Datajack Build | -11 -10 -9 ------- Run | Yrd Mat Mat Slots Evolved 2 | . . 2 Power . | . . . Propulsion 1 | . . 1 Utility 1 | . . 1 Weapon . | . . . Parts Attached 42 | 8 21 13 Power 9 | 2 3 4 Engine 9 | 2 3 4 Core . | . . . Reactor . | . . . Propulsion 9 | 2 5 2 Treads 1 | . . 1 Leg . | . . . Wheel 8 | 2 5 1 Hover . | . . . Flight . | . . . Utility 11 | 2 7 2 Device 6 | 1 4 1 Storage 3 | 1 1 1 Processor 2 | . 2 . Hackware . | . . . Protection . | . . . Artifact . | . . . Weapon 13 | 2 6 5 Energy Gun 4 | 1 2 1 Energy Cannon . | . . . Ballistic Gun 3 | 1 . 2 Ballistic Cannon 2 | . 1 1 Launcher 3 | . 2 1 Special Weapon . | . . . Impact Weapon . | . . . Slashing Weapon . | . . . Piercing Weapon . | . . . Special Melee Weapon 1 | . 1 . Unidentified Prototypes . | . . . Parts Lost 19 | . 4 15 Power 4 | . . 4 Propulsion 6 | . 2 4 Utility 2 | . . 2 Weapon 7 | . 2 5 Highest Loss Streak 8 | . 3 8 To Critical Strikes 1 | . . 1 Average Slot Usage (%) 86 | . 96 60 Engine 12 | . 14 9 Wheel 21 | . 27 7 Device 12 | . 13 10 Storage 10 | . 12 6 Processor 4 | . 2 11 Energy Gun 6 | . 7 4 Ballistic Gun 4 | . 4 5 Ballistic Cannon 3 | . 4 3 Launcher 7 | . 9 . Naked Turns . | . . . Heaviest Build 15 | 10 15 12 Greatest Support 20 | 20 20 20 Greatest Overweight (x) 3 | . 1 3 Average Overweight (x) . | . . . Largest Inventory Capacity 5 | 5 5 5 Average Capacity 5 | 5 5 5 Most Carried 5 | 5 5 5 Average Carried 3 | 3 4 2 Final Capacity 5 | 5 5 5 Final Carried 5 | 4 5 1 Class Distribution -------------------- 80% | Mutant 19% | Scavenger-Mutant Dominant Class ---------------- Mutant | -10/Materials Scavenger-Mutant | -9/Materials Resources | -11 -10 -9 ----------- Run | Yrd Mat Mat Matter Collected 993 | 378 287 328 Remotely . | . . . Salvage Created 637 | 82 332 223 Parts 60 | 12 28 20 Haulers Intercepted 1 | . 1 . Recyclers Shooed . | . . . Parts Field Recycled . | . . . Retrieved Matter . | . . . Parts Self-Destructed . | . . . Prevented . | . . . Kills | -11 -10 -9 ------- Run | Yrd Mat Mat Combat Hostiles Destroyed 17 | 1 8 8 Guns 8 | 1 4 3 Cannons 1 | . . 1 AOE 8 | . 4 4 Classes Destroyed 11 | 3 5 3 Worker 1 | 1 . . Builder 3 | . 2 1 Tunneler 2 | 2 . . Hauler 1 | . 1 . Recycler 1 | . . 1 Mechanic 1 | . 1 . Operator 1 | . . 1 Watcher 3 | . 3 . Swarmer 9 | . 3 6 Grunt 7 | 1 5 1 Sentry 1 | . . 1 Best Kill Streak 7 | 3 6 7 Combat Bots Only 5 | 1 5 4 Max Kills in Single Turn 3 | 1 2 3 Gunslinging . | . . . Exploded 2 | . 1 2 Melee . | . . . Uniques/NPCs Destroyed . | . . . Combat | -11 -10 -9 -------- Run | Yrd Mat Mat Hostile Shots Fired 246 | 8 46 192 Missed 76 | 2 16 58 Damage Taken 1785 | 70 394 1321 Core 526 | 24 97 405 Absorbed by Shields . | . . . Core Remaining (%) 70 | 90 51 . Volleys Fired 92 | 13 38 41 Largest 2 | 1 2 1 Hottest 70 | 20 70 65 Shots Fired 93 | 13 39 41 Gun 56 | 13 19 24 Cannon 16 | . 5 11 Launcher 21 | . 15 6 Special . | . . . Kinetic 59 | 13 16 30 Thermal 5 | . . 5 Explosive 21 | . 15 6 Electromagnetic 8 | . 8 . Robot Hit Streak 16 | 5 16 5 Robot Miss Streak 3 | 2 2 3 Penetration Max . | . . . Secondary Targets . | . . . Shots Hit Robots 52 | 9 21 22 Core Hits 43 | 5 23 15 Critical Kills 1 | . 1 . Critical Parts Destroyed . | . . . Critical Strikes 1 | . 1 . Destroy 1 | . 1 . Melee Attacks 3 | . 3 . Impact . | . . . Slashing . | . . . Piercing . | . . . Sneak Attacks . | . . . Combat Hostiles . | . . . Follow-up Attacks . | . . . Damage Inflicted 1556 | 106 826 624 Guns 526 | 106 241 179 Cannons 122 | . 34 88 Explosions 887 | . 530 357 Melee . | . . . Ramming 21 | . 21 . Kinetic 479 | 106 172 201 Thermal 102 | . 36 66 Explosive 851 | . 494 357 Electromagnetic 103 | . 103 . Impact . | . . . Slashing . | . . . Piercing . | . . . Highest Corruption 1 | . 1 . Average Corruption 1 | . 1 . Corruption Purged . | . . . Corruption Blocked . | . . . Effects 2 | . 2 . Matter Fused 1 | . 1 . Data Loss (minor) 1 | . 1 . Overload Shots . | . . . Overflow Damage 31 | . 20 11 Projectiles . | . . . Explosions 30 | . 19 11 Melee 1 | . 1 . Knockbacks 4 | . . 4 Impact . | . . . Kinetic 3 | . . 3 Secondary 1 | . . 1 Self-Inflicted Damage 162 | . 107 55 Shots 7 | . 5 2 Rammed 2 | . 2 . Targets Rammed 2 | . 2 . Kicked . | . . . Crushed . | . . . Highest Temperature 60 | . 51 60 Average Temperature 23 | . 25 21 Received Heat Transfer 408 | 36 51 321 Siege Activations . | . . . Robots Corrupted . | . . . Combat Hostiles . | . . . Parts Fried . | . . . Impact Corruptions 1 | . 1 . Robots Melted . | . . . Combat Hostiles . | . . . Parts Melted . | . . . Heat Transferred 248 | . 100 148 Parts Sabotaged . | . . . Parts Stolen . | . . . Parts Stripped . | . . . Power Chain Reactions 1 | . 1 . Alert | -11 -10 -9 ------- Run | Yrd Mat Mat Peak Influence 283 | 35 283 279 Initial 76 | . 22 76 Average 141 | 11 142 215 Maximum Alert Level 1 | . 1 1 Low Security (%) 67 | 100 77 20 Level 1 32 | . 22 79 Level 2 . | . . . Level 3 . | . . . Level 4 . | . . . Level 5 . | . . . High Security . | . . . Max Security . | . . . Squads Dispatched 2 | . . 2 Investigation . | . . . Extermination . | . . . Reinforcement 2 | . . 2 Assault . | . . . Garrison . | . . . Intercept . | . . . Searches Triggered . | . . . Construction Impeded 1 | . . 1 Haulers Reinforced . | . . . Active Scanning Responses . | . . . Cargo Convoy Interrupts . | . . . Stealth | -11 -10 -9 --------- Run | Yrd Mat Mat Distress Signals 5 | . 2 3 Communications Jammed . | . . . Distress Signals . | . . . Times Spotted 38 | 1 15 22 Peak Tracking Total 7 | 1 5 7 Tactical Retreats 1 | . . 1 Traps | -11 -10 -9 ------- Run | Yrd Mat Mat Traps Triggered 2 | . 2 . Indirectly . | . . . Trap Hack Attempts . | . . . Triggered . | . . . Disarmed . | . . . Reprogrammed . | . . . Reused . | . . . Traps Extracted . | . . . Installed . | . . . Triggered . | . . . Machines | -11 -10 -9 ---------- Run | Yrd Mat Mat Machines Disabled 3 | . 1 2 Max in Single Turn 1 | . 1 1 Machines Repaired . | . . . Machines Dismantled . | . . . Machines Sabotaged . | . . . Overloaded Fab Kills . | . . . Hacking | -11 -10 -9 --------- Run | Yrd Mat Mat Machines Accessed 3 | . 3 . Terminals 3 | . 3 . Fabricators . | . . . Repair Stations . | . . . Recycling Units . | . . . Scanalyzers . | . . . Garrison Access . | . . . Total Hacks 7 | . 7 . Successful 4 | . 4 . Failed 3 | . 3 . Catastrophic 1 | . 1 . Database Lockouts . | . . . Manual . | . . . Terminals 7 | . 7 . Fabricators . | . . . Repair Stations . | . . . Recycling Units . | . . . Scanalyzers . | . . . Garrison Access . | . . . Terminal Hacks 4 | . 4 . Record 3 | . 3 . Alert Level 1 | . 1 . Fabricator Hacks . | . . . Repair Station Hacks . | . . . Recycling Unit Hacks . | . . . Scanalyzer . | . . . Garrison Access Hacks . | . . . Unauthorized Hacks . | . . . Terminals . | . . . Fabricators . | . . . Repair Stations . | . . . Recycling Units . | . . . Scanalyzers . | . . . Garrison Access . | . . . Data Cores Recovered . | . . . Used . | . . . Hacking Detections 1 | . 1 . Full Trace Events . | . . . Feedback Events . | . . . Feedback Blocked . | . . . Robot Schematics Acquired . | . . . Robots Built . | . . . Authchips . | . . . Time . | . . . Total Robot Build Rating . | . . . Part Schematics Acquired . | . . . Parts Built . | . . . Authchips . | . . . Time . | . . . Total Part Build Rating . | . . . Parts Repaired . | . . . Time . | . . . Parts Recycled . | . . . Recycled Matter . | . . . Retrieved Matter . | . . . Retrieved Components . | . . . Parts Scanalyzed . | . . . Part Schematics Acquired . | . . . Parts Damaged . | . . . Bothacking | -11 -10 -9 ------------ Run | Yrd Mat Mat Used RIF Installer . | . . . Robots Hacked . | . . . Non-combat . | . . . Combat . | . . . Robot Hacks Applied . | . . . Relay Couplers Released . | . . . Fabnet Peak Effective % . | . . . Robots Rewired . | . . . Allies Hacked . | . . . Hacks Repelled . | . . . Allies | -11 -10 -9 -------- Run | Yrd Mat Mat Total Allies . | . . . Largest Group . | . . . Highest-Rated Group . | . . . Highest-Rated Ally . | . . . Total Orders . | . . . Ally Attacks . | . . . Total Damage . | . . . Kills . | . . . Allies Corrupted . | . . . Allies Melted . | . . . Intel | -11 -10 -9 ------- Run | Yrd Mat Mat Robot Analysis Total . | . . . Derelict Logs Recovered . | . . . Drone Launches . | . . . Drone Recoveries . | . . . Exploration | -11 -10 -9 ------------- Run | Yrd Mat Mat Turns Passed 1088 | 155 669 264 Spaces Moved 956 | 140 667 149 Core 64 | 22 . 42 Treads 29 | . . 29 Legs . | . . . Wheels 863 | 118 667 78 Hover . | . . . Flight . | . . . Fastest Speed 50 | 50 80 50 Average Speed 84 | 75 80 110 Slowest Speed 200 | 80 95 200 Overloaded Moves . | . . . Propulsion Burnouts . | . . . Robots Hopped . | . . . Cave-ins Triggered . | . . . Exploration Rate (%) 31 | 8 74 13 Regions Visited 2 Branch Regions . Pre-discovered Areas . | . . . Known Exits Taken 1 | . 1 . Unknown Exits Taken 1 | 1 . . Scrap Searched . | . . . Spaces Dug . | . . . Terrain Destroyed 109 | . 72 37 Melee . | . . . Projectile 1 | . . 1 AOE 108 | . 72 36 Terrain Rammed . | . . . Walls Destroyed . | . . . Machines Disabled . | . . . Actions | -11 -10 -9 --------- Run | Yrd Mat Mat Total 1145 | 177 758 210 Wait 2 | . 2 . Move 954 | 139 666 149 Hop . | . . . Pick Up 36 | 13 16 7 Fast Attach . | . . . Attach 27 | 7 9 11 Detach 2 | 1 1 . Swap 15 | 1 12 2 Drop 12 | 3 9 . Fire 92 | 13 38 41 Melee 3 | . 3 . Ram 2 | . 2 . Kick . | . . . Crush . | . . . Escape Stasis . | . . . Rewire . | . . . Trap . | . . . Miscellaneous . | . . . Route ------- -11/Scrapyard -10/Materials (discovered 2 exits: *Mat x2) -9/Materials (discovered 1 exit: [*Min]) History --------- Turn | Location | Event 2 | -11/Scrapyard | Met Revision 17 83 | -11/Scrapyard | Discovered new exit (range 8) 156 | -11/Scrapyard | Entered Materials 303 | -10/Materials | Build established: Mutant 393 | -10/Materials | Lost 3 parts (1n2w) 645 | -10/Materials | Discovered new exit (range 13) 725 | -10/Materials | Discovered new exit (range 15) 823 | -10/Materials | Identified exit to Materials 825 | -10/Materials | Entered another Materials area 825 | -9/Materials | Evolved 2 slots: Propulsion x1, Utility x1 867 | -9/Materials | Discovered new exit (range 16) 947 | -9/Materials | Core integrity fell below 50% 959 | -9/Materials | Lost 8 parts (2p2n1u3w) 1008 | -9/Materials | Lost 4 parts (1p1n1u1w) 1030 | -9/Materials | Core integrity fell below 20% 1089 | -9/Materials | Destroyed by G-47 Trooper with Particle Gun Last Messages --------------- Acquired Lgt. Ion Engine. G-34 Mercenary destroyed. R-06 Scavenger collects Lgt. Treads. Acquired Ion Engine. R-06 Scavenger collects Lgt. Armor Plating. Acquired 44 matter. R-06 Scavenger collects Flight Unit. Acquired Hvy. Assault Rifle. R-06 Scavenger collects Flight Unit. Acquired Lgt. Treads. Acquired 15 matter. Acquired 53 matter. W-16 Scout sends out distress signal. R-06 Scavenger collects Aluminum Leg. R-06 Scavenger collects Flight Unit. Lgt. Assault Rifle destroyed. R-06 Scavenger collects Heat Sink. Acquired 8 matter. Ion Engine destroyed. Lgt. Treads destroyed. Map ----- +----------------------------------------------------+ | ?????????????????????????????????????????????????? | | ?????????????????????????????????????????????????? | | ?????????????????????????????????????????????????? | | ?????????????????????????????????????????????????? | | ?????????????????????????????????????????????????? | | ?????????????????????????????????????????????????? | | ?????????????????????????????????????????????????? | | ?????????????????????????????????????????????????? | | ?????????????????????????????????????????????????? | | ?????????????????????????????????????????????????? | | ?????????????????????????????????????????????????? | | ?????????????????????????????????????????????????? | | ?????????????????????????????????????????????????? | | ?????????????????????????????????????????????????? | | ?????????????????????????????????????????????????? | | ???????????????????????????????????????########??? | | ???????????????????????????????????????# #??? | | ???????????????????????????????????????# #??? | | ???????????????????????????????????????# "" #??? | | ???????????????????????????????????????# """ #??? | | ???????????????????????????????????????# """ #??? | | ???????????????# ??????????????????????# #??? | | ???????????##### ########################+###### | | ?????????? g | | ?????????? ggg | | ?????????? @ g * | | ?????????????????##################### ##+###### | | ??????????????????????????????????# # # #? | | ??????????????????????????????????# # # #? | | ??????????????????????????????????# # #""" #? | | ??????????????????????????????????# # #""" #? | | ??????????????????????????????????####%% #""" #? | | ???????????????????????????????????# # # #? | | ???????????????????????????????????### ########? | | ???????????????????????????????????### #####???? | | ???????????????????????????????????### # ##### | | ????????????????????????# ##### ! | | ???????????????????????? | | ???????????????????????? < | | ???????????????????????? % % # ##### | | ????????????????????????? ####% #???? | | ????????????????????????? "|"|"????### #####???? | | ???????????????????????????|"????????# #???????? | | ?????????????????????????????????????# ???????? | | ?????????????????????????????????????# ???????? | | ?????????????????????????????????????# ???????? | | ?????????????????????????????????????##+###??????? | | ?????????????????????????????????????????????????? | | ?????????????????????????????????????????????????? | | ?????????????????????????????????????????????????? | +----------------------------------------------------+ Best States ------------- Heat Dissipation 28 Energy Generation 10 Energy Capacity 250 Matter Stores 383 Matter Capacity 500 Sight Range 16 Robot Scan Range 14 Terrain Scan Range 16 Terrain Scan Density 10 Evasion (%) 50 Recoil Reduction 1 Item Schematics ----------------- None Robot Schematics ------------------ None Fabricated ------------ Nothing Alien Tech Used ----------------- None Achievements -------------- None Challenges ------------ None Game ------ Seed TeslaExoskeletonBeam Manual? 0 Play Time 00:30:38 Cumulative 1.1 hours Start 2024.08.03 @ 20:33:51 End 2024.08.03 @ 22:14:35 Sessions 1 Manual Loads 0 Difficulty Rogue Special Mode None Game No. 2 Rogue 2 Adventurer 0 Explorer 0 Win Type - Total 0 Types 0/0/0/0/0/0/0/0/0 Lore% 0 Gallery% 3 Achievement% 1 Wizard Run 0 Options --------- Layout 1 ASCII 0 Keyboard 0 Movement Arrows Keybinds 0 Fullscreen 1 Font 24/Smallcaps Map View 25x17 Zoom Use 3% Tactical HUD 0 Map Filters NONE Filters NONE Steam 1 RUN: 61dea091-d2c2-4743-a39e-1446d18a02a7